fUSD/lending_fUSD_20250414
["ID","MTS","AMOUNT","RATE_DAILY","PERIOD"]
[357966502,1744626643097,-547.8138326,0.00019178,2]
[357966503,1744626643107,-500.0,0.00019178,2]
[357966504,1744626643116,-500.0,0.00019178,2]
[357966505,1744626643126,-500.0,0.00019178,2]
[357966506,1744626643135,-545.37389088,0.00019178,2]
[357966507,1744626643144,-500.0,0.00019178,2]
[357966508,1744626643153,-500.0,0.00019178,2]
[357966509,1744626643163,-500.0,0.00019178,2]
[357966510,1744626643173,-500.0,0.00019178,2]
[357966511,1744626643183,-500.0,0.00019178,2]
[357966513,1744626643193,-500.0,0.00019178,2]
[357966514,1744626643203,-500.0,0.00019178,2]
[357966518,1744626643380,-500.0,0.00019178,2]
[357966519,1744626643392,-500.0,0.00019178,2]
[357966520,1744626643402,-500.0,0.00019178,2]
[357966521,1744626643412,-500.0,0.00019178,2]
[357966522,1744626643422,-500.0,0.00019178,2]
[357966523,1744626643431,-500.0,0.00019178,2]
[357966524,1744626643442,-500.0,0.00019178,2]
[357966525,1744626643452,-500.0,0.00019178,2]
[357966526,1744626643462,-500.0,0.00019178,2]
[357966527,1744626643472,-500.0,0.00019178,2]
[357966528,1744626643482,-500.0,0.00019178,2]
[357966529,1744626643491,-509.21,0.00019178,2]
[357966530,1744626643501,-500.0,0.00019178,2]
[357966531,1744626643511,-500.0,0.00019178,2]
[357966532,1744626643520,-500.0,0.00019178,2]
[357966533,1744626643530,-500.0,0.00019178,2]
[357966534,1744626643539,-502.21546187,0.00019178,2]
[357966535,1744626643550,-500.0,0.00019178,2]
[357966536,1744626643559,-500.0,0.00019178,2]
[357966537,1744626643569,-500.0,0.00019178,2]
[357966538,1744626643578,-579.47,0.00019178,2]
[357966539,1744626643587,-500.0,0.00019178,2]
[357966540,1744626643596,-500.0,0.00019178,2]
[357966541,1744626643606,-500.0,0.00019178,2]
[357966542,1744626643615,-379.70568516,0.00019178,2]
[357966543,1744626643625,-500.0,0.00019178,2]
[357966544,1744626643634,-500.0,0.00019178,2]
[357966545,1744626643644,-536.21001164,0.00019178,2]
[357966546,1744626643653,-507.81594577,0.00019178,2]
[357966547,1744626643663,-500.0,0.00019178,2]
[357966548,1744626643673,-500.0,0.00019178,2]
[357966549,1744626643682,-500.0,0.00019178,2]
[357966550,1744626643692,-507.77060765,0.00019178,2]
[357966551,1744626643703,-500.0,0.00019178,2]
[357966552,1744626643713,-511.13046101,0.00019178,2]
[357966553,1744626643722,-500.0,0.00019178,2]
[357966554,1744626643732,-500.0,0.00019178,2]
[357966555,1744626643741,-500.0,0.00019178,2]
[357966556,1744626643750,-500.0,0.00019178,2]
[357966557,1744626643765,-513.17396872,0.00019178,2]
[357966558,1744626643774,-500.0,0.00019178,2]
[357966559,1744626643783,-500.0,0.00019178,2]
[357966560,1744626643793,-500.0,0.00019178,2]
[357966561,1744626643803,-500.0,0.00019178,2]
[357966562,1744626643812,-500.0,0.00019178,2]
[357966563,1744626643822,-500.0,0.00019178,2]
[357966564,1744626643831,-500.0,0.00019178,2]
[357966565,1744626643841,-500.0,0.00019178,2]
[357966566,1744626643851,-500.0,0.00019178,2]
[357966567,1744626643860,-500.0,0.00019178,2]
[357966568,1744626643870,-500.0,0.00019178,2]
[357966569,1744626643879,-500.0,0.00019178,2]
[357966570,1744626643888,-503.79239307,0.00019178,2]
[357966571,1744626643898,-500.0,0.00019178,2]
[357966572,1744626643907,-500.0,0.00019178,2]
[357966573,1744626643916,-500.0,0.00019178,2]
[357966574,1744626643926,-500.0,0.00019178,2]
[357966575,1744626643935,-500.0,0.00019178,2]
[357966576,1744626643946,-500.0,0.00019178,2]
[357966577,1744626643955,-500.0,0.00019178,2]
[357966578,1744626643965,-500.0,0.00019178,2]
[357966579,1744626643974,-500.0,0.00019178,2]
[357966580,1744626643983,-500.0,0.00019178,2]
[357966581,1744626643993,-500.0,0.00019178,2]
[357966582,1744626644002,-500.0,0.00019178,2]
[357966583,1744626644012,-500.0,0.00019178,2]
[357966584,1744626644021,-500.0,0.00019178,2]
[357966585,1744626644030,-500.0,0.00019178,2]
[357966586,1744626644039,-500.0,0.00019178,2]
[357966587,1744626644048,-500.0,0.00019178,2]
[357966588,1744626644058,-500.0,0.00019178,2]
[357966589,1744626644067,-554.77054452,0.00019178,2]
[357966590,1744626644076,-500.0,0.00019178,2]
[357966591,1744626644086,-500.0,0.00019178,2]
[357966592,1744626644096,-500.0,0.00019178,2]
[357966593,1744626644105,-500.0,0.00019178,2]
[357966594,1744626644115,-500.0,0.00019178,2]
[357966595,1744626644124,-500.0,0.00019178,2]
[357966596,1744626644134,-500.0,0.00019178,2]
[357966597,1744626644143,-500.0,0.00019178,2]
[357966598,1744626644152,-880.98,0.00019178,2]
[357966599,1744626644161,-500.0,0.00019178,2]
[357966600,1744626644170,-534.48,0.00019178,2]
[357966601,1744626644179,-500.0,0.00019178,2]
[357966602,1744626644189,-500.0,0.00019178,2]
[357966603,1744626644199,-500.0,0.00019178,2]
[357966604,1744626644208,-512.17,0.00019178,2]
[357966605,1744626644218,-503.81,0.00019178,2]
[357966606,1744626644227,-502.99452859,0.00019178,2]
[357966607,1744626644236,-500.0,0.00019178,2]
[357966608,1744626644246,-534.47577771,0.00019178,2]
[357966609,1744626644255,-150.0,0.00019178,2]
[357966610,1744626644270,-552.9,0.00019178,2]
[357966611,1744626644279,-150.0,0.00019178,2]
[357966612,1744626644289,-500.0,0.00019178,2]
[357966613,1744626644299,-500.0,0.00019178,2]
[357966614,1744626644310,-500.0,0.00019178,2]
[357966615,1744626644320,-500.0,0.00019178,2]
[357966616,1744626644330,-500.0,0.00019178,2]
[357966617,1744626644341,-500.0,0.00019178,2]
[357966618,1744626644350,-500.0,0.00019178,2]
[357966619,1744626644359,-500.0,0.00019178,2]
[357966620,1744626644371,-500.0,0.00019178,2]
[357966621,1744626644380,-437.31968086,0.00019178,2]
[357966622,1744626644389,-536.76,0.00019178,2]
[357966623,1744626644399,-500.0,0.00019178,2]
[357966624,1744626644408,-538.01975631,0.00019178,2]
[357966625,1744626644418,-500.0,0.00019178,2]
[357966626,1744626644428,-268.03217353,0.00019178,2]
[357966627,1744626644437,-595.99,0.00019178,2]
[357966628,1744626644446,-500.0,0.00019178,2]
[357966629,1744626644456,-513.81051288,0.00019178,2]
[357966630,1744626644465,-500.0,0.00019178,2]
[357966631,1744626644475,-27118.16,0.00019178,2]
[357966632,1744626644485,-500.0,0.00019178,2]
[357966633,1744626644495,-500.0,0.00019178,2]
[357966634,1744626644504,-500.0,0.00019178,2]
[357966635,1744626644514,-500.0,0.00019178,2]
[357966636,1744626644523,-500.0,0.00019178,2]
[357966637,1744626644532,-300.0,0.00019178,2]
[357966638,1744626644542,-500.0,0.00019178,2]
[357966639,1744626644551,-500.0,0.00019178,2]
[357966640,1744626644561,-500.0,0.00019178,2]
[357966641,1744626644571,-500.0,0.00019178,2]
[357966642,1744626644581,-500.0,0.00019178,2]
[357966643,1744626644591,-500.0,0.00019178,2]
[357966644,1744626644600,-500.0,0.00019178,2]
[357966645,1744626644609,-1402.26,0.00019178,2]
[357966646,1744626644619,-952.99,0.00019178,2]
[357966647,1744626644628,-500.0,0.00019178,2]
[357966648,1744626644637,-500.0,0.00019178,2]
[357966649,1744626644647,-500.0,0.00019178,2]
[357966650,1744626644656,-576.54,0.00019178,2]
[357966651,1744626644665,-500.0,0.00019178,2]
[357966652,1744626644675,-500.0,0.00019178,2]
[357966653,1744626644684,-500.0,0.00019178,2]
[357966654,1744626644693,-500.0,0.00019178,2]
[357966655,1744626644703,-500.0,0.00019178,2]
[357966656,1744626644713,-500.0,0.00019178,2]
[357966657,1744626644722,-500.0,0.00019178,2]
[357966658,1744626644732,-500.0,0.00019178,2]
[357966659,1744626644742,-500.0,0.00019178,2]
[357966660,1744626644753,-500.0,0.00019178,2]
[357966661,1744626644763,-500.0,0.00019178,2]
[357966662,1744626644773,-500.0,0.00019178,2]
[357966663,1744626644782,-500.0,0.00019178,2]
[357966664,1744626644791,-500.0,0.00019178,2]
[357966665,1744626644804,-500.0,0.00019178,2]
[357966666,1744626644814,-514.64,0.00019178,2]
[357966667,1744626644823,-500.0,0.00019178,2]
[357966668,1744626644833,-500.0,0.00019178,2]
[357966669,1744626644842,-500.0,0.00019178,2]
[357966670,1744626644851,-500.0,0.00019178,2]
[357966671,1744626644861,-421.73685686,0.00019178,2]
[357966672,1744626644871,-500.0,0.00019178,2]
[357966673,1744626644880,-500.0,0.00019178,2]
[357966674,1744626644890,-500.0,0.00019178,2]
[357966675,1744626644899,-430.57,0.00019178,2]
[357966676,1744626644909,-500.0,0.00019178,2]
[357966677,1744626644919,-500.0,0.00019178,2]
[357966678,1744626644929,-500.08103103,0.00019178,2]
[357966679,1744626644938,-3760.62,0.00019178,2]
[357966680,1744626644950,-500.0,0.00019178,2]
[357966681,1744626644960,-500.0,0.00019178,2]
[357966682,1744626644970,-500.0,0.00019178,2]
[357966683,1744626644980,-500.0,0.00019178,2]
[357966684,1744626644990,-500.0,0.00019178,2]
[357966685,1744626645001,-500.0,0.00019178,2]
[357966686,1744626645011,-500.0,0.00019178,2]
[357966687,1744626645021,-500.0,0.00019178,2]
[357966688,1744626645031,-501.75659727,0.00019178,2]
[357966689,1744626645042,-500.0,0.00019178,2]
[357966690,1744626645051,-500.0,0.00019178,2]
[357966691,1744626645061,-500.0,0.00019178,2]
[357966692,1744626645072,-500.0,0.00019178,2]
[357966693,1744626645082,-500.0,0.00019178,2]
[357966694,1744626645092,-500.0,0.00019178,2]
[357966695,1744626645102,-500.0,0.00019178,2]
[357966696,1744626645111,-160.53250968,0.00019178,2]
[357966697,1744626645121,-500.0,0.00019178,2]
[357966698,1744626645131,-500.0,0.00019178,2]
[357966699,1744626645140,-500.0,0.00019178,2]
[357966700,1744626645150,-500.0,0.00019178,2]
[357966701,1744626645159,-500.0,0.00019178,2]
[357966702,1744626645169,-500.0,0.00019178,2]
[357966703,1744626645179,-500.0,0.00019178,2]
[357966704,1744626645189,-563.55,0.00019178,2]
[357966705,1744626645202,-544.28,0.00019178,2]
[357966706,1744626645211,-500.0,0.00019178,2]
[357966707,1744626645221,-500.0,0.00019178,2]
[357966708,1744626645230,-1060.61,0.00019178,2]
[357966709,1744626645240,-500.0,0.00019178,2]
[357966710,1744626645250,-500.0,0.00019178,2]
[357966711,1744626645261,-500.0,0.00019178,2]
[357966712,1744626645275,-500.0,0.00019178,2]
[357966713,1744626645285,-500.0,0.00019178,2]
[357966714,1744626645295,-500.0,0.00019178,2]
[357966715,1744626645304,-500.0,0.00019178,2]
[357966716,1744626645314,-500.0,0.00019178,2]
[357966718,1744626645324,-500.0,0.00019178,2]
[357966719,1744626645334,-500.0,0.00019178,2]
[357966720,1744626645345,-500.0,0.00019178,2]
[357966721,1744626645355,-500.0,0.00019178,2]
[357966722,1744626645364,-507.01884421,0.00019178,2]
[357966723,1744626645374,-500.0,0.00019178,2]
[357966725,1744626645384,-500.0,0.00019178,2]
[357966726,1744626645394,-506.15435221,0.00019178,2]
[357966727,1744626645404,-500.0,0.00019178,2]
[357966728,1744626645413,-500.0,0.00019178,2]
[357966729,1744626645423,-500.0,0.00019178,2]
[357966730,1744626645433,-500.0,0.00019178,2]
[357966731,1744626645443,-500.0,0.00019178,2]
[357966732,1744626645455,-500.0,0.00019178,2]
[357966733,1744626645465,-735.33,0.00019178,2]
[357966734,1744626645475,-500.0,0.00019178,2]
[357966735,1744626645484,-500.0,0.00019178,2]
[357966737,1744626645495,-500.0,0.00019178,2]
[357966739,1744626645504,-500.0,0.00019178,2]
[357966740,1744626645514,-500.0,0.00019178,2]
[357966741,1744626645523,-500.0,0.00019178,2]
[357966742,1744626645533,-549.6,0.00019178,2]
[357966743,1744626645542,-500.0,0.00019178,2]
[357966744,1744626645552,-509.20915493,0.00019178,2]
[357966746,1744626645562,-440.40168611,0.00019178,2]
[357966748,1744626645571,-983.95,0.00019178,2]
[357966750,1744626645580,-179.39370182,0.00019178,2]
[357966752,1744626645590,-500.0,0.00019178,2]
[357966754,1744626645599,-522.59,0.00019178,2]
[357966756,1744626645608,-500.0,0.00019178,2]
[357966758,1744626645618,-500.0,0.00019178,2]
[357966760,1744626645627,-500.0,0.00019178,2]
[357966762,1744626645636,-500.0,0.00019178,2]
[357966764,1744626645646,-2000.0,0.00019178,2]
[357966766,1744626645655,-500.0,0.00019178,2]
[357966768,1744626645664,-500.0,0.00019178,2]
[357966770,1744626645673,-500.0,0.00019178,2]
[357966771,1744626645683,-498.16083254,0.00019178,2]
[357966772,1744626645692,-500.0,0.00019178,2]
[357966773,1744626645702,-500.0,0.00019178,2]
[357966774,1744626645712,-500.0,0.00019178,2]
[357966775,1744626645721,-1164.09,0.00019178,2]
[357966776,1744626645730,-500.0,0.00019178,2]
[357966777,1744626645740,-500.0,0.00019178,2]
[357966778,1744626645749,-500.0,0.00019178,2]
[357966779,1744626645760,-500.0,0.00019178,2]
[357966780,1744626645770,-500.0,0.00019178,2]
[357966781,1744626645780,-500.0,0.00019178,2]
[357966782,1744626645790,-500.0,0.00019178,2]
[357966783,1744626645800,-500.0,0.00019178,2]
[357966784,1744626645810,-500.0,0.00019178,2]
[357966785,1744626645819,-500.0,0.00019178,2]
[357966786,1744626645830,-500.0,0.00019178,2]
[357966787,1744626645839,-500.0,0.00019178,2]
[357966788,1744626645849,-500.0,0.00019178,2]
[357966789,1744626645858,-500.0,0.00019178,2]
[357966790,1744626645867,-500.0,0.00019178,2]
[357966791,1744626645877,-500.0,0.00019178,2]
[357966792,1744626645887,-527.03,0.00019178,2]
[357966793,1744626645897,-525.19032362,0.00019178,2]
[357966794,1744626645906,-500.0,0.00019178,2]
[357966795,1744626645916,-500.0,0.00019178,2]
[357966796,1744626645925,-500.0,0.00019178,2]
[357966797,1744626645935,-315.58937823,0.00019178,2]
[357966798,1744626645945,-500.0,0.00019178,2]
[357966799,1744626645957,-500.0,0.00019178,2]
[357966800,1744626645967,-574.83773874,0.00019178,2]
[357966801,1744626645977,-500.0,0.00019178,2]
[357966802,1744626645987,-500.0,0.00019178,2]
[357966803,1744626645996,-500.0,0.00019178,2]
[357966804,1744626646007,-500.0,0.00019178,2]
[357966805,1744626646016,-500.0,0.00019178,2]
[357966806,1744626646026,-500.0,0.00019178,2]
[357966807,1744626646036,-500.0,0.00019178,2]
[357966808,1744626646046,-500.0,0.00019178,2]
[357966809,1744626646056,-500.0,0.00019178,2]
[357966810,1744626646065,-500.0,0.00019178,2]
[357966811,1744626646075,-500.0,0.00019178,2]
[357966812,1744626646085,-500.0,0.00019178,2]
[357966814,1744626646095,-500.0,0.00019178,2]
[357966816,1744626646104,-500.0,0.00019178,2]
[357966817,1744626646115,-500.0,0.00019178,2]
[357966818,1744626646125,-514.98488608,0.00019178,2]
[357966819,1744626646134,-500.0,0.00019178,2]
[357966820,1744626646143,-300.90561804,0.00019178,2]
[357966821,1744626646153,-619.27083389,0.00019178,2]
[357966822,1744626646163,-500.0,0.00019178,2]
[357966823,1744626646174,-500.0,0.00019178,2]
[357966824,1744626646184,-584.22711303,0.00019178,2]
[357966825,1744626646194,-500.0,0.00019178,2]
[357966827,1744626646205,-301.92017355,0.00019178,2]
[357966828,1744626646215,-500.0,0.00019178,2]
[357966829,1744626646224,-500.0,0.00019178,2]
[357966830,1744626646234,-569.16,0.00019178,2]
[357966831,1744626646243,-500.0,0.00019178,2]
[357966832,1744626646252,-500.0,0.00019178,2]
[357966833,1744626646263,-500.0,0.00019178,2]
[357966834,1744626646277,-500.0,0.00019178,2]
[357966835,1744626646288,-150.0,0.00019233,2]
[357966836,1744626646297,-971.93466628,0.00019261,2]
[357966837,1744626646308,-449.08,0.00019267,2]
[357966838,1744626646318,-248.9216775,0.00019288,2]
[357966839,1744626646329,-161.47,0.000193,2]
[357966840,1744626646339,-1156.51154717,0.0001933,2]
[357966841,1744626646350,-971.93466628,0.00019352,2]
[357966842,1744626646360,-36083.0014,0.00019352,2]
[357966843,1744626646371,-1156.51154708,0.00019393,2]
[357966844,1744626646381,-971.93466628,0.00019443,2]
[357966845,1744626646391,-500.0,0.0001945,2]
[357966846,1744626646401,-243.46456664,0.00019451,2]
[357966847,1744626646411,-227.76916964,0.00019451,2]
[357966848,1744626646421,-500.0,0.00019452,2]
[357966849,1744626646430,-343.6358242,0.00019452,2]
[357966850,1744626646440,-618.1,0.00019452,2]
[357966851,1744626646452,-500.0,0.00019452,2]
[357966852,1744626646462,-240.21,0.00019452,2]
[357966853,1744626646472,-212.58,0.00019452,2]
[357966854,1744626646482,-500.0,0.00019452,2]
[357966855,1744626646492,-500.0,0.00019452,2]
[357966856,1744626646502,-567.17493632,0.00019452,2]
[357966857,1744626646512,-500.0,0.00019452,2]
[357966858,1744626646521,-375.47,0.00019452,2]
[357966859,1744626646531,-500.0,0.00019452,2]
[357966860,1744626646542,-500.0,0.00019452,2]
[357966861,1744626646553,-262.29,0.00019452,2]
[357966862,1744626646563,-537.81,0.00019452,2]
[357966863,1744626646572,-500.0,0.00019452,2]
[357966864,1744626646582,-321.65,0.00019452,2]
[357966865,1744626646591,-500.0,0.00019452,2]
[357966866,1744626646601,-500.0,0.00019452,2]
[357966867,1744626646611,-500.0,0.00019452,2]
[357966868,1744626646620,-500.0,0.00019452,2]
[357966869,1744626646630,-249.22,0.00019452,2]
[357966870,1744626646640,-500.0,0.00019452,2]
[357966871,1744626646649,-500.0,0.00019452,2]
[357966872,1744626646659,-500.0,0.00019452,2]
[357966873,1744626646668,-500.0,0.00019452,2]
[357966874,1744626646678,-500.0,0.00019452,2]
[357966875,1744626646687,-500.0,0.00019452,2]
[357966876,1744626646838,-500.0,0.00019452,2]
[357966877,1744626646849,-257.47,0.00019452,2]
[357966878,1744626646859,-463.74,0.00019452,2]
[357966879,1744626646868,-274.79,0.00019452,2]
[357966880,1744626646878,-512.83,0.00019452,2]
[357966881,1744626646887,-612.82,0.00019452,2]
[357966882,1744626646897,-500.0,0.00019452,2]
[357966883,1744626646906,-448.72,0.00019452,2]
[357966884,1744626646915,-500.0,0.00019452,2]
[357966885,1744626646924,-500.0,0.00019452,2]
[357966886,1744626646933,-500.0,0.00019452,2]
[357966887,1744626646942,-500.0,0.00019452,2]
[357966888,1744626646952,-500.0,0.00019452,2]
[357966889,1744626646962,-452.51,0.00019452,2]
[357966890,1744626646971,-500.0,0.00019452,2]
[357966891,1744626646980,-500.0,0.00019452,2]
[357966892,1744626646989,-815.87,0.00019452,2]
[357966893,1744626646999,-552.64,0.00019452,2]
[357966894,1744626647008,-500.0,0.00019452,2]
[357966895,1744626647017,-500.0,0.00019452,2]
[357966896,1744626647026,-509.59,0.00019452,2]
[357966897,1744626647035,-500.0,0.00019452,2]
[357966898,1744626647044,-375.13,0.00019452,2]
[357966899,1744626647053,-565.41,0.00019452,2]
[357966900,1744626647063,-550.03,0.00019452,2]
[357966901,1744626647071,-623.60163382,0.00019452,2]
[357966902,1744626647080,-500.0,0.00019452,2]
[357966903,1744626647090,-500.0,0.00019452,2]
[357966904,1744626647098,-519.62,0.00019452,2]
[357966905,1744626647107,-199.7853455,0.00019452,2]
[357966906,1744626647116,-500.0,0.00019452,2]
[357966907,1744626647126,-500.0,0.00019452,2]
[357966908,1744626647135,-500.0,0.00019452,2]
[357966909,1744626647143,-352.86,0.00019452,2]
[357966910,1744626647152,-500.0,0.00019452,2]
[357966911,1744626647162,-500.0,0.00019452,2]
[357966912,1744626647170,-500.0,0.00019452,2]
[357966913,1744626647179,-500.0,0.00019452,2]
[357966914,1744626647188,-500.0,0.00019452,2]
[357966915,1744626647199,-500.0,0.00019452,2]
[357966916,1744626647208,-500.0,0.00019452,2]
[357966917,1744626647217,-500.0,0.00019452,2]
[357966918,1744626647225,-500.0,0.00019452,2]
[357966919,1744626647235,-540.6,0.00019452,2]
[357966920,1744626647244,-500.0,0.00019452,2]
[357966921,1744626647253,-246.03,0.00019452,2]
[357966922,1744626647263,-500.0,0.00019452,2]
[357966923,1744626647276,-500.0,0.00019452,2]
[357966924,1744626647286,-500.0,0.00019452,2]
[357966925,1744626647296,-254.45499636,0.00019452,2]
[357966926,1744626647307,-500.0,0.00019452,2]
[357966927,1744626647316,-500.0,0.00019452,2]
[357966928,1744626647325,-500.0,0.00019452,2]
[357966929,1744626647335,-500.0,0.00019452,2]
[357966930,1744626647347,-500.0,0.00019452,2]
[357966931,1744626647358,-880.98,0.00019452,2]
[357966932,1744626647367,-500.0,0.00019452,2]
[357966933,1744626647376,-503.81,0.00019452,2]
[357966934,1744626647386,-402.76925039,0.00019452,2]
[357966935,1744626647396,-574.75,0.00019452,2]
[357966936,1744626647407,-500.0,0.00019452,2]
[357966937,1744626647416,-27118.16,0.00019452,2]
[357966938,1744626647425,-317.65113806,0.00019452,2]
[357966939,1744626647434,-500.0,0.00019452,2]
[357966940,1744626647444,-500.0,0.00019452,2]
[357966941,1744626647455,-519.32,0.00019452,2]
[357966942,1744626647464,-1402.26,0.00019452,2]
[357966943,1744626647474,-952.99,0.00019452,2]
[357966944,1744626647484,-554.05,0.00019452,2]
[357966945,1744626647493,-500.0,0.00019452,2]
[357966946,1744626647503,-500.0,0.00019452,2]
[357966947,1744626647512,-500.0,0.00019452,2]
[357966948,1744626647522,-313.1,0.00019452,2]
[357966949,1744626647531,-500.0,0.00019452,2]
[357966950,1744626647540,-514.64,0.00019452,2]
[357966951,1744626647549,-500.0,0.00019452,2]
[357966952,1744626647558,-500.0,0.00019452,2]
[357966953,1744626647566,-519.28624382,0.00019452,2]
[357966954,1744626647575,-504.03,0.00019452,2]
[357966955,1744626647584,-3760.62,0.00019452,2]
[357966956,1744626647593,-196.37,0.00019452,2]
[357966957,1744626647603,-203.08,0.00019452,2]
[357966958,1744626647612,-542.14,0.00019452,2]
[357966959,1744626647621,-500.0,0.00019452,2]
[357966960,1744626647630,-424.45,0.00019452,2]
[357966961,1744626647639,-500.0,0.00019452,2]
[357966962,1744626647647,-315.06,0.00019452,2]
[357966963,1744626647656,-500.0,0.00019452,2]
[357966964,1744626647665,-500.0,0.00019452,2]
[357966965,1744626647674,-500.0,0.00019452,2]
[357966966,1744626647683,-444.69,0.00019452,2]
[357966967,1744626647693,-1060.61,0.00019452,2]
[357966968,1744626647703,-500.0,0.00019452,2]
[357966969,1744626647713,-500.0,0.00019452,2]
[357966970,1744626647722,-500.0,0.00019452,2]
[357966971,1744626647731,-442.03,0.00019452,2]
[357966972,1744626647739,-500.0,0.00019452,2]
[357966973,1744626647748,-500.0,0.00019452,2]
[357966974,1744626647757,-500.0,0.00019452,2]
[357966975,1744626647766,-309.8,0.00019452,2]
[357966976,1744626647775,-500.0,0.00019452,2]
[357966977,1744626647784,-632.76,0.00019452,2]
[357966978,1744626647792,-500.0,0.00019452,2]
[357966979,1744626647801,-500.0,0.00019452,2]
[357966980,1744626647810,-500.0,0.00019452,2]
[357966981,1744626647819,-390.97,0.00019452,2]
[357966982,1744626647828,-475.84,0.00019452,2]
[357966983,1744626647837,-500.0,0.00019452,2]
[357966984,1744626647846,-735.33,0.00019452,2]
[357966985,1744626647855,-500.0,0.00019452,2]
[357966986,1744626647864,-500.0,0.00019452,2]
[357966987,1744626647873,-500.0,0.00019452,2]
[357966988,1744626647882,-549.6,0.00019452,2]
[357966989,1744626647891,-983.95,0.00019452,2]
[357966990,1744626647900,-500.0,0.00019452,2]
[357966991,1744626647909,-500.0,0.00019452,2]
[357966992,1744626647918,-500.0,0.00019452,2]
[357966993,1744626647928,-181.17,0.00019452,2]
[357966994,1744626647938,-1164.09,0.00019452,2]
[357966995,1744626647947,-597.82471758,0.00019452,2]
[357966996,1744626647956,-500.0,0.00019452,2]
[357966997,1744626647966,-500.0,0.00019452,2]
[357966998,1744626647975,-500.0,0.00019452,2]
[357966999,1744626647984,-500.0,0.00019452,2]
[357967000,1744626647993,-500.0,0.00019452,2]
[357967001,1744626648004,-500.0,0.00019452,2]
[357967002,1744626648014,-500.0,0.00019452,2]
[357967003,1744626648025,-527.03,0.00019452,2]
[357967004,1744626648036,-500.0,0.00019452,2]
[357967005,1744626648047,-500.0,0.00019452,2]
[357967006,1744626648058,-505.39,0.00019452,2]
[357967007,1744626648070,-500.0,0.00019452,2]
[357967008,1744626648083,-500.0,0.00019452,2]
[357967009,1744626648093,-500.0,0.00019452,2]
[357967010,1744626648102,-500.0,0.00019452,2]
[357967011,1744626648112,-500.0,0.00019452,2]
[357967012,1744626648122,-569.16,0.00019452,2]
[357967013,1744626648131,-500.0,0.00019452,2]
[357967014,1744626648141,-296.21,0.00019452,2]
[357967015,1744626648150,-1156.51154708,0.00019457,2]
[357967016,1744626648159,-1156.51154708,0.0001952,2]
[357967017,1744626648169,-971.93466628,0.00019535,2]
[357967018,1744626648179,-1156.51154708,0.00019583,2]
[357967019,1744626648189,-971.93466628,0.00019626,2]
[357967020,1744626648200,-1156.51154708,0.00019647,2]
[357967021,1744626648210,-767.73613326,0.00019686,2]
[357967022,1744626648220,-370.48724767,0.00019703,2]
[357967023,1744626648229,-767.73613326,0.00019706,2]
[357967024,1744626648239,-1156.51154708,0.0001971,2]
[357967025,1744626648249,-971.93466628,0.00019717,2]